[Event "GER-ch Youth U18 2019"]
[Site "Willingen"]
[Date "2019.06.13"]
[Round "7.11"]
[White "Schneider, Jana"]
[Black "Wendler, David"]
[Result "1-0"]
[ECO "B06"]
[WhiteElo "2235"]
[BlackElo "2166"]
[Annotator "NA"]
[PlyCount "117"]
[EventDate "2019.06.07"]
[EventType "swiss"]
[EventRounds "9"]
[EventCountry "GER"]
[SourceTitle "playchess.com"]
[Source "ChessBase"]
[SourceQuality "1"]
[TimeControl "40/5400+30:1800+30"]

1. e4 {[%emt 0:00:00]} g6 {[%emt 0:00:00]} 2. d4 {[%emt 0:00:00]} Bg7 {[%emt 0:00:00]} 3. Nc3 {[%emt 0:00:00]} d6 {[%emt 0:00:02]} 4. Be3 {[%emt 0:00:10]} a6 {[%emt 0:00:14]} 5. Qd2 {[%emt 0:00:15]} b5 {[%emt 0:00:37]} 6. f3 {[%emt 0:00:15]} Nd7 {[%emt 0:00:49]} 7. O-O-O {[%emt 0:00:34]} Bb7 {[%emt 0:06:23]} 8. h4 {[%emt 0:00:30]} h5 {[%emt 0:00:23]} 9. Nh3 {[%emt 0:00:17]} Ngf6 {[%emt 0:02:23]} 10. Ng5 {[%emt 0:00:21]} Rc8 {[%emt 0:08:43]} 11. e5 {[%emt 0:00:23]} b4 {[%emt 0:08:49]} 12. Ne2 {[%emt 0:05:58]} dxe5 {[%emt 0:03:30]} 13. dxe5 {[%emt 0:00:09]} Nd5 {[%emt 0:08:17]} 14. e6 {[%emt 0:00:29]} Ne5 {[%emt 0:00:25]} 15. exf7+ {[%emt 0:01:27]} Nxf7 {[%emt 0:00:07]} 16. Ne6 {[%emt 0:01:52]} Qd6 {[%emt 0:03:15]} 17. Nxg7+ {[%emt 0:00:26]} Kf8 {[%emt 0:00:07]} 18. Bd4 {[%emt 0:04:17]} Nf6 {[%emt 0:04:07]} 19. Bxf6 {[%emt 0:15:11]} Qxf6 {[%emt 0:00:17]} 20. Nxh5 {[%emt 0:01:53]} Rxh5 {[%emt 0:03:36]} 21. Qxb4 {[%emt 0:01:08]} Nd6 {[%emt 0:07:23]} 22. Nc3 {[%emt 0:05:52]} a5 {[%emt 0:07:41]} 23. Qg4 {[%emt 0:09:54]} Nf5 {[%emt 0:12:33]} 24. Bc4 {[%emt 0:25:59]} Ne3 {[%emt 0:09:28]} 25. Qe6 {[%emt 0:00:40]} Qxe6 {[%emt 0:00:16]} 26. Bxe6 {[%emt 0:00:03]} Nxd1 {[%emt 0:00:32]} 27. Bxc8 {[%emt 0:01:40]} Nf2 {[%emt 0:00:30]} 28. Rf1 {[%emt 0:04:11]} Bxc8 {[%emt 0:00:11]} 29. Rxf2 {[%emt 0:00:05]} Rxh4 {[%emt 0:00:04]} 30. Rd2 {[%emt 0:01:05]} Bf5 {[%emt 0:03:57]} 31. a4 {[%emt 0:09:07]} c6 {[%emt 0:05:07]} 32. b3 {[%emt 0:00:24]} Kf7 {[%emt 0:01:10]} 33. Nd1 {[%emt 0:01:08]} Rh1 {[%emt 0:00:47]} 34. Kb2 {[%emt 0:00:39]} Re1 {[%emt 0:00:05]} 35. Kc3 {[%emt 0:01:20]} g5 {[%emt 0:01:02]} 36. Kd4 {[%emt 0:03:36]} Bxc2 {[%emt 0:01:51]} 37. Rxc2 {[%emt 0:00:08]} Rxd1+ {[%emt 0:00:05]} 38. Kc5 {[%emt 0:00:04]} Rb1 {[%emt 0:03:34]} 39. Rc3 {[%emt 0:00:25]} g4 {[%emt 0:00:29]} 40. Kxc6 {[%emt 0:01:12]} e5 {[%emt 0:00:16]} 41. fxg4 {[%emt 0:34:15]} Ke6 {[%emt 0:00:59]} 42. Kb6 {[%emt 0:00:00]} e4 {[%emt 0:03:30]} 43. Kxa5 {[%emt 0:00:00]} Ke5 {[%emt 0:02:47]} 44. b4 {[%emt 0:00:00]} Kd4 {[%emt 0:00:13]} 45. Rc8 {[%emt 0:00:00]} e3 {[%emt 0:01:56]} 46. Re8 {[%emt 0:00:00]} Kd3 {[%emt 0:03:02]} 47. b5 {[%emt 0:00:00]} e2 {[%emt 0:00:26]} 48. b6 {[%emt 0:00:00]} e1=Q+ {[%emt 0:01:26]} 49. Rxe1 {[%emt 0:00:00]} Rxe1 {[%emt 0:00:08]} 50. b7 {[%emt 0:00:00]} Rb1 {[%emt 0:01:26]} 51. Ka6 {[%emt 0:00:00]} Kc4 {[%emt 0:00:54]} 52. a5 {[%emt 0:00:00]} Rb5 {[%emt 0:01:21]} 53. g5 {[%emt 0:00:00]} Kb4 {[%emt 0:00:29]} 54. g6 {[%emt 0:00:00]} Rxa5+ {[%emt 0:00:36]} 55. Kb6 {[%emt 0:00:00]} Rb5+ {[%emt 0:00:51]} 56. Kc7 {[%emt 0:00:00]} Rc5+ {[%emt 0:00:10]} 57. Kd6 {[%emt 0:00:00]} Rb5 {[%emt 0:00:30]} 58. g7 {[%emt 0:00:00]} Rb6+ {[%emt 0:00:53]} 59. Kc7 {[%emt 0:00:00] normal} 1-0

[Event "GER-ch Youth U18 2019"]
[Site "Willingen"]
[Date "2019.06.13"]
[Round "7.12"]
[White "Schnabel, Bennett"]
[Black "Lange, Jannis"]
[Result "0-1"]
[ECO "A00"]
[WhiteElo "2125"]
[BlackElo "2024"]
[Annotator "RC"]
[PlyCount "176"]
[EventDate "2019.06.07"]
[EventType "swiss"]
[EventRounds "9"]
[EventCountry "GER"]
[SourceTitle "playchess.com"]
[Source "ChessBase"]
[SourceQuality "1"]
[TimeControl "40/5400+30:1800+30"]

1. a3 {[%emt 0:00:00]} c5 {[%emt 0:03:39]} 2. f4 {[%emt 0:00:00]} Nc6 {[%emt 0:00:52]} 3. Nf3 {[%emt 0:00:02]} Nf6 {[%emt 0:01:37]} 4. g3 {[%emt 0:00:33]} g6 {[%emt 0:02:04]} 5. d3 {[%emt 0:00:17]} d5 {[%emt 0:02:23]} 6. Bg2 {[%emt 0:00:07]} Bg7 {[%emt 0:00:18]} 7. c3 {[%emt 0:00:06]} O-O {[%emt 0:01:52]} 8. O-O {[%emt 0:00:04]} Re8 {[%emt 0:09:42]} 9. Ne5 {[%emt 0:00:10]} Ng4 {[%emt 0:09:53]} 10. Nxg4 {[%emt 0:04:43]} Bxg4 {[%emt 0:00:04]} 11. h3 {[%emt 0:00:05]} Be6 {[%emt 0:07:37]} 12. e4 {[%emt 0:02:33]} dxe4 {[%emt 0:03:55]} 13. dxe4 {[%emt 0:00:36]} Qxd1 {[%emt 0:00:30]} 14. Rxd1 {[%emt 0:00:01]} Rad8 {[%emt 0:00:12]} 15. Rxd8 {[%emt 0:07:05]} Rxd8 {[%emt 0:00:05]} 16. Kf2 {[%emt 0:00:16]} Na5 {[%emt 0:16:35]} 17. Nd2 {[%emt 0:04:00]} f5 {[%emt 0:05:34]} 18. e5 {[%emt 0:03:35]} g5 {[%emt 0:04:10]} 19. b4 {[%emt 0:05:05]} Nc6 {[%emt 0:00:43]} 20. Ke3 {[%emt 0:10:15]} Bh6 {[%emt 0:07:59]} 21. Bxc6 {[%emt 0:33:59]} gxf4+ {[%emt 0:00:11]} 22. gxf4 {[%emt 0:00:23]} bxc6 {[%emt 0:00:03]} 23. bxc5 {[%emt 0:01:51]} Rd5 {[%emt 0:00:16]} 24. Nf3 {[%emt 0:00:44]} Rxc5 {[%emt 0:00:04]} 25. Bd2 {[%emt 0:04:11]} Kf7 {[%emt 0:01:44]} 26. Rb1 {[%emt 0:07:48]} Ra5 {[%emt 0:08:46]} 27. Bc1 {[%emt 0:00:10]} c5 {[%emt 0:00:33]} 28. Ne1 {[%emt 0:06:00]} Bd5 {[%emt 0:04:27]} 29. Rb8 {[%emt 0:01:31]} Ra4 {[%emt 0:03:13]} 30. Nd3 {[%emt 0:01:57]} Re4+ {[%emt 0:03:08]} 31. Kf2 {[%emt 0:00:04]} Bc4 {[%emt 0:00:45]} 32. Nxc5 {[%emt 0:01:42]} Re2+ {[%emt 0:00:08]} 33. Kf3 {[%emt 0:00:38]} Re1 {[%emt 0:00:13]} 34. Be3 {[%emt 0:00:51]} Bd5+ {[%emt 0:02:25]} 35. Kf2 {[%emt 0:00:13]} Rh1 {[%emt 0:00:09]} 36. Rd8 {[%emt 0:01:17]} Bc6 {[%emt 0:01:05]} 37. e6+ {[%emt 0:00:52]} Kg6 {[%emt 0:00:33]} 38. Nd3 {[%emt 0:00:23]} Kh5 {[%emt 0:00:47]} 39. Bxa7 {[%emt 0:02:58]} Rh2+ {[%emt 0:00:26]} 40. Ke3 {[%emt 0:01:09]} Rxh3+ {[%emt 0:00:06]} 41. Kd4 {[%emt 0:30:56]} Bg7+ {[%emt 0:09:28]} 42. Ne5 {[%emt 0:00:00]} Rf3 {[%emt 0:04:23]} 43. Bb8 {[%emt 0:00:00]} Rxf4+ {[%emt 0:05:09]} 44. Kc5 {[%emt 0:00:00]} Ba4 {[%emt 0:01:12]} 45. c4 {[%emt 0:00:00]} Re4 {[%emt 0:02:54]} 46. Kd5 {[%emt 0:00:00]} Bb3 {[%emt 0:04:01]} 47. Rc8 {[%emt 0:00:00]} Re2 {[%emt 0:02:01]} 48. Nc6 {[%emt 0:00:00]} Rd2+ {[%emt 0:03:00]} 49. Kc5 {[%emt 0:00:00]} Rc2 {[%emt 0:00:16]} 50. Nxe7 {[%emt 0:01:54]} Rxc4+ {[%emt 0:00:11]} 51. Kd6 {[%emt 0:00:20]} Rd4+ {[%emt 0:00:35]} 52. Kc5 {[%emt 0:02:27]} Bxe6 {[%emt 0:01:06]} 53. Re8 {[%emt 0:01:20]} Re4 {[%emt 0:01:04]} 54. Nc6 {[%emt 0:01:01]} Rc4+ {[%emt 0:00:41]} 55. Kd6 {[%emt 0:00:31]} Bf7 {[%emt 0:00:24]} 56. Re1 {[%emt 0:00:34]} Bf8+ {[%emt 0:00:38]} 57. Kd7 {[%emt 0:00:23]} Bxa3 {[%emt 0:00:26]} 58. Rh1+ {[%emt 0:00:05]} Rh4 {[%emt 0:00:15]} 59. Rf1 {[%emt 0:00:42]} Kg5 {[%emt 0:00:35]} 60. Ne5 {[%emt 0:00:11]} Rd4+ {[%emt 0:00:30]} 61. Kc8 {[%emt 0:00:28]} Be6+ {[%emt 0:00:14]} 62. Kb7 {[%emt 0:00:26]} Bd5+ {[%emt 0:00:27]} 63. Kc8 {[%emt 0:00:12]} Be6+ {[%emt 0:00:06]} 64. Kb7 {[%emt 0:00:05]} Rb4+ {[%emt 0:00:23]} 65. Ka7 {[%emt 0:00:37]} Kf6 {[%emt 0:01:18]} 66. Nc6 {[%emt 0:00:26]} Ra4+ {[%emt 0:00:40]} 67. Kb6 {[%emt 0:00:23]} Bb2 {[%emt 0:00:36]} 68. Rh1 {[%emt 0:00:32]} Kg7 {[%emt 0:01:11]} 69. Rh2 {[%emt 0:00:18]} Bf6 {[%emt 0:00:16]} 70. Rg2+ {[%emt 0:00:32]} Rg4 {[%emt 0:00:15]} 71. Re2 {[%emt 0:00:50]} Bf7 {[%emt 0:00:18]} 72. Rf2 {[%emt 0:00:27]} Kg6 {[%emt 0:00:47]} 73. Be5 {[%emt 0:00:27]} Bd5 {[%emt 0:00:35]} 74. Rh2 {[%emt 0:01:18]} Bxc6 {[%emt 0:00:22]} 75. Bxf6 {[%emt 0:00:03]} Kxf6 {[%emt 0:00:21]} 76. Kxc6 {[%emt 0:00:03]} Kg6 {[%emt 0:00:18]} 77. Kd5 {[%emt 0:00:05]} h5 {[%emt 0:00:20]} 78. Ke5 {[%emt 0:00:09]} h4 {[%emt 0:00:39]} 79. Rh3 {[%emt 0:00:43]} Kg5 {[%emt 0:00:20]} 80. Rf3 {[%emt 0:00:02]} Re4+ {[%emt 0:00:08]} 81. Kd5 {[%emt 0:00:06]} Kg4 {[%emt 0:00:17]} 82. Rf1 {[%emt 0:00:07]} Re3 {[%emt 0:00:16]} 83. Kd4 {[%emt 0:00:08]} f4 {[%emt 0:00:11]} 84. Rg1+ {[%emt 0:00:09]} Rg3 {[%emt 0:00:05]} 85. Rh1 {[%emt 0:00:22]} h3 {[%emt 0:00:16]} 86. Ke4 {[%emt 0:00:03]} Re3+ {[%emt 0:00:16]} 87. Kd4 {[%emt 0:00:03]} Re2 {[%emt 0:00:12]} 88. Kd3 {[%emt 0:00:25]} f3 {[%emt 0:00:17] normal} 0-1

[Event "GER-ch Youth U18 2019"]
[Site "Willingen"]
[Date "2019.06.13"]
[Round "7.13"]
[White "Wong, Gengchun"]
[Black "Knoedler, Marcel"]
[Result "1-0"]
[ECO "C90"]
[WhiteElo "2144"]
[BlackElo "1633"]
[Annotator "NA"]
[PlyCount "51"]
[EventDate "2019.06.07"]
[EventType "swiss"]
[EventRounds "9"]
[EventCountry "GER"]
[SourceTitle "playchess.com"]
[Source "ChessBase"]
[SourceQuality "1"]
[TimeControl "40/5400+30:1800+30"]

1. e4 {[%emt 0:00:00]} e5 {[%emt 0:00:00]} 2. Nf3 {[%emt 0:00:00]} Nc6 3. Bb5 {[%emt 0:00:00]} a6 {[%emt 0:00:29]} 4. Ba4 {[%emt 0:03:23]} Nf6 {[%emt 0:08:10]} 5. d3 {[%emt 0:01:25]} d6 {[%emt 0:01:54]} 6. c3 Be7 {[%emt 0:04:32]} 7. O-O {[%emt 0:00:49]} O-O 8. Re1 b5 {[%emt 0:06:06]} 9. Bb3 {[%emt 0:03:55]} Be6 10. Bxe6 {[%emt 0:07:42]} fxe6 {[%emt 0:10:11]} 11. a4 {[%emt 0:03:34]} Qd7 {[%emt 0:06:01]} 12. Nbd2 {[%emt 0:13:53]} Rfb8 {[%emt 0:18:47]} 13. Nf1 b4 14. Bd2 {[%emt 0:04:41]} bxc3 {[%emt 0:04:30]} 15. Bxc3 {[%emt 0:00:48]} Nb4 {[%emt 0:02:13]} 16. d4 {[%emt 0:03:03]} exd4 {[%emt 0:01:04]} 17. Bxd4 {[%emt 0:00:10]} c5 {[%emt 0:03:29]} 18. Bxf6 {[%emt 0:04:52]} gxf6 {[%emt 0:08:17]} 19. Ra3 Nc6 20. Nh4 {[%emt 0:25:15]} Ne5 {[%emt 0:03:17]} 21. f4 {[%emt 0:05:59]} Ng6 22. Rg3 Kf7 {[%emt 0:03:47]} 23. Qh5 {[%emt 0:01:58]} Rg8 {[%emt 0:02:22]} 24. f5 exf5 25. exf5 {[%emt 0:00:48]} Qxa4 {[%emt 0:02:09]} 26. Qxh7+ {[%emt 0:03:14] normal} 1-0

[Event "GER-ch Youth U18 2019"]
[Site "Willingen"]
[Date "2019.06.13"]
[Round "7.14"]
[White "Rockmann, Jan-Okke"]
[Black "Sureshkumar, Atchuthan"]
[Result "1-0"]
[ECO "B77"]
[WhiteElo "1816"]
[BlackElo "1502"]
[Annotator "NA"]
[PlyCount "45"]
[EventDate "2019.06.07"]
[EventType "swiss"]
[EventRounds "9"]
[EventCountry "GER"]
[SourceTitle "playchess.com"]
[Source "ChessBase"]
[SourceQuality "1"]
[TimeControl "40/5400+30:1800+30"]

1. e4 {[%emt 0:00:00]} c5 {[%emt 0:00:00]} 2. Nf3 {[%emt 0:00:00]} d6 {[%emt 0:00:00]} 3. d4 {[%emt 0:00:00]} cxd4 {[%emt 0:00:15]} 4. Nxd4 {[%emt 0:00:00]} Nf6 {[%emt 0:00:47]} 5. Nc3 {[%emt 0:00:00]} g6 {[%emt 0:01:32]} 6. Be3 {[%emt 0:00:12]} Bg7 {[%emt 0:03:16]} 7. Bc4 {[%emt 0:00:57]} O-O {[%emt 0:02:47]} 8. f3 {[%emt 0:01:16]} Nc6 {[%emt 0:02:48]} 9. Qd2 {[%emt 0:01:08]} Qc7 {[%emt 0:01:22]} 10. Bb3 {[%emt 0:00:34]} Na5 {[%emt 0:03:15]} 11. g4 {[%emt 0:01:00]} Nxb3 {[%emt 0:03:37]} 12. axb3 {[%emt 0:01:23]} Bd7 {[%emt 0:05:57]} 13. Bh6 {[%emt 0:05:49]} a6 {[%emt 0:14:50]} 14. h4 {[%emt 0:00:56]} e6 {[%emt 0:01:50]} 15. h5 {[%emt 0:02:38]} d5 {[%emt 0:16:54]} 16. hxg6 {[%emt 0:01:28]} fxg6 {[%emt 0:00:15]} 17. Bxg7 {[%emt 0:00:10]} Kxg7 {[%emt 0:01:17]} 18. Qh6+ {[%emt 0:02:01]} Kf7 {[%emt 0:05:06]} 19. O-O-O {[%emt 0:04:44]} Rh8 {[%emt 0:03:44]} 20. Qg5 {[%emt 0:00:36]} dxe4 {[%emt 0:10:55]} 21. fxe4 {[%emt 0:03:11]} Kg7 {[%emt 0:01:28]} 22. e5 {[%emt 0:00:16]} Ne8 23. Qe7+ {normal} 1-0

[Event "GER-ch Youth U18 2019"]
[Site "Willingen"]
[Date "2019.06.14"]
[Round "8.1"]
[White "Engel, Luis"]
[Black "Roseneck, Jonas"]
[Result "1-0"]
[ECO "B91"]
[WhiteElo "2512"]
[BlackElo "2403"]
[Annotator "ChessBase"]
[PlyCount "74"]
[EventDate "2019.06.07"]
[EventType "swiss"]
[EventRounds "9"]
[EventCountry "GER"]
[SourceTitle "playchess.com"]
[Source "ChessBase"]
[SourceQuality "1"]
[TimeControl "40/5400+30:1800+30"]

1. e4 {[%emt 0:00:00]} c5 {[%emt 0:00:00]} 2. Nf3 {[%emt 0:00:00]} d6 {[%emt 0:00:00]} 3. d4 {[%emt 0:00:00]} cxd4 {[%emt 0:00:00]} 4. Nxd4 {[%emt 0:00:00]} Nf6 {[%emt 0:00:00]} 5. Nc3 {[%emt 0:00:00]} a6 {[%emt 0:00:00]} 6. g3 {[%emt 0:00:00]} e5 {[%emt 0:00:00]} 7. Nde2 {[%emt 0:00:03]} Be7 {[%emt 0:00:08]} 8. a4 {[%emt 0:00:06]} O-O {[%emt 0:04:44]} 9. Bg2 {[%emt 0:00:08]} Nc6 {[%emt 0:06:06]} 10. O-O {[%emt 0:00:13]} Nb4 {[%emt 0:02:40]} 11. b3 {[%emt 0:00:47]} Be6 {[%emt 0:08:41]} 12. Ba3 {[%emt 0:00:48]} a5 {[%emt 0:01:41]} 13. Nb5 {[%emt 0:10:54]} d5 {[%emt 0:03:57]} 14. c3 {[%emt 0:01:44]} Nc6 {[%emt 0:00:51]} 15. Bxe7 {[%emt 0:00:32]} Nxe7 {[%emt 0:00:48]} 16. exd5 {[%emt 0:00:31]} Bxd5 {[%emt 0:01:21]} 17. c4 {[%emt 0:00:51]} Bxg2 {[%emt 0:05:00]} 18. Kxg2 {[%emt 0:00:07]} Qb6 {[%emt 0:17:12]} 19. Nec3 {[%emt 0:10:31]} Rad8 {[%emt 0:07:25]} 20. Qe2 {[%emt 0:02:58]} Nc6 {[%emt 0:07:10]} 21. Rad1 {[%emt 0:03:29]} Qc5 {[%emt 0:11:24]} 22. Qf3 {[%emt 0:07:01]} h6 {[%emt 0:05:00]} 23. Nd5 {[%emt 0:07:34]} Nxd5 {[%emt 0:00:33]} 24. Rxd5 {[%emt 0:00:06]} Rxd5 {[%emt 0:01:39]} 25. Qxd5 {[%emt 0:00:10]} Qb4 {[%emt 0:00:55]} 26. c5 {[%emt 0:01:37]} Nd4 {[%emt 0:03:30]} 27. Nd6 {[%emt 0:05:43]} Qxb3 {[%emt 0:09:56]} 28. Qxb3 {[%emt 0:00:06]} Nxb3 {[%emt 0:00:01]} 29. Nxb7 {[%emt 0:00:09]} Rb8 {[%emt 0:00:38]} 30. c6 {[%emt 0:00:25]} Nd4 {[%emt 0:01:35]} 31. Nxa5 {[%emt 0:02:52]} Ra8 {[%emt 0:00:47]} 32. Rc1 {[%emt 0:00:25]} Ne6 {[%emt 0:00:28]} 33. Nb7 {[%emt 0:03:38]} Kf8 {[%emt 0:01:11]} 34. c7 {[%emt 0:02:44]} Rc8 {[%emt 0:00:05]} 35. Nc5 {[%emt 0:00:07]} Ke7 {[%emt 0:01:09]} 36. Nxe6 {[%emt 0:00:07]} Kxe6 {[%emt 0:00:01]} 37. Kf3 {[%emt 0:00:28]} f5 {[%emt 0:00:30] normal} 1-0

[Event "GER-ch Youth U18 2019"]
[Site "Willingen"]
[Date "2019.06.14"]
[Round "8.2"]
[White "Buckels, Valentin"]
[Black "Parvanyan, Ashot"]
[Result "0-1"]
[ECO "A45"]
[WhiteElo "2443"]
[BlackElo "2421"]
[Annotator "NA"]
[PlyCount "107"]
[EventDate "2019.06.07"]
[EventType "swiss"]
[EventRounds "9"]
[EventCountry "GER"]
[SourceTitle "playchess.com"]
[Source "ChessBase"]
[SourceQuality "1"]
[TimeControl "40/5400+30:1800+30"]

1. d4 {[%emt 0:00:00]} Nf6 {[%emt 0:00:00]} 2. Bg5 {[%emt 0:00:00]} d5 {[%emt 0:01:00]} 3. e3 {[%emt 0:00:20]} c5 {[%emt 0:03:10]} 4. Nf3 {[%emt 0:14:22]} Qb6 {[%emt 0:02:26]} 5. Qc1 {[%emt 0:15:10]} Nc6 {[%emt 0:02:27]} 6. c3 {[%emt 0:00:22]} Bf5 {[%emt 0:03:17]} 7. Nbd2 {[%emt 0:00:59]} cxd4 {[%emt 0:14:45]} 8. exd4 {[%emt 0:01:37]} Rc8 {[%emt 0:01:14]} 9. a4 {[%emt 0:12:01]} a6 {[%emt 0:09:36]} 10. Be2 {[%emt 0:02:17]} e6 {[%emt 0:15:56]} 11. O-O {[%emt 0:02:28]} Bd6 {[%emt 0:00:17]} 12. b3 {[%emt 0:02:04]} h6 {[%emt 0:09:02]} 13. Be3 {[%emt 0:04:59]} Ng4 {[%emt 0:01:57]} 14. c4 {[%emt 0:04:27]} Qc7 {[%emt 0:02:35]} 15. h3 {[%emt 0:02:44]} Nxe3 {[%emt 0:00:14]} 16. fxe3 {[%emt 0:00:02]} Qe7 {[%emt 0:01:52]} 17. Qc3 {[%emt 0:06:31]} Bb4 {[%emt 0:05:12]} 18. Qb2 {[%emt 0:00:40]} O-O {[%emt 0:01:14]} 19. Rf2 {[%emt 0:05:31]} Bh7 {[%emt 0:01:46]} 20. Rd1 {[%emt 0:01:45]} Bd6 {[%emt 0:01:02]} 21. Nf1 {[%emt 0:01:22]} Nb4 {[%emt 0:05:33]} 22. Qd2 {[%emt 0:02:46]} a5 {[%emt 0:01:29]} 23. Ne1 {[%emt 0:01:09]} b6 {[%emt 0:00:59]} 24. Rc1 {[%emt 0:02:39]} e5 {[%emt 0:12:17]} 25. dxe5 {[%emt 0:04:15]} Qxe5 {[%emt 0:00:24]} 26. Nf3 {[%emt 0:00:35]} Qe7 {[%emt 0:00:41]} 27. Nd4 {[%emt 0:01:02]} Bc5 {[%emt 0:00:41]} 28. cxd5 {[%emt 0:01:27]} Nxd5 {[%emt 0:00:09]} 29. Bc4 {[%emt 0:05:55]} Nf6 {[%emt 0:00:21]} 30. Bd3 {[%emt 0:02:24]} Ne4 {[%emt 0:01:47]} 31. Bxe4 {[%emt 0:00:04]} Bxe4 {[%emt 0:00:10]} 32. Ng3 {[%emt 0:00:23]} Bg6 {[%emt 0:01:11]} 33. Ngf5 {[%emt 0:00:46]} Qe5 {[%emt 0:00:21]} 34. Rcf1 {[%emt 0:00:36]} Rfe8 {[%emt 0:00:55]} 35. Kh1 {[%emt 0:00:47]} Qe4 {[%emt 0:00:57]} 36. Rf4 {[%emt 0:01:13]} Qd5 {[%emt 0:00:29]} 37. Qd1 {[%emt 0:01:02]} Re5 {[%emt 0:00:29]} 38. Nh4 {[%emt 0:01:24]} Bh5 {[%emt 0:00:30]} 39. Nhf3 {[%emt 0:00:40]} Rxe3 {[%emt 0:00:25]} 40. Rf5 {[%emt 0:00:38]} Bxf3 {[%emt 0:00:35]} 41. Rxd5 {[%emt 0:03:10]} Bxd1 {[%emt 0:03:08]} 42. Rxd1 {[%emt 0:00:13]} Rce8 {[%emt 0:02:42]} 43. Nc6 {[%emt 0:00:51]} Re1+ {[%emt 0:12:55]} 44. Kh2 {[%emt 0:00:26]} Bg1+ {[%emt 0:00:22]} 45. Kh1 {[%emt 0:00:07]} Bf2+ {[%emt 0:00:57]} 46. Kh2 {[%emt 0:00:11]} R8e3 {[%emt 0:01:41]} 47. g4 {[%emt 0:00:29]} Bg3+ {[%emt 0:00:24]} 48. Kg2 {[%emt 0:00:02]} R1e2+ {[%emt 0:00:06]} 49. Kg1 {[%emt 0:00:48]} Rb2 {[%emt 0:07:34]} 50. R5d3 {[%emt 0:04:07]} Bh2+ {[%emt 0:01:48]} 51. Kh1 {[%emt 0:00:46]} Ree2 {[%emt 0:00:30]} 52. Nd4 {[%emt 0:00:26]} Rf2 {[%emt 0:01:41]} 53. Nf3 {[%emt 0:01:50]} Bf4 {[%emt 0:00:15]} 54. Re1 {[%emt 0:00:36] normal} 0-1

[Event "GER-ch Youth U18 2019"]
[Site "Willingen"]
[Date "2019.06.14"]
[Round "8.3"]
[White "Martin, Julian"]
[Black "Schmider, Niklas"]
[Result "1/2-1/2"]
[ECO "C47"]
[WhiteElo "2370"]
[BlackElo "2300"]
[Annotator "NA"]
[PlyCount "63"]
[EventDate "2019.06.07"]
[EventType "swiss"]
[EventRounds "9"]
[EventCountry "GER"]
[SourceTitle "playchess.com"]
[Source "ChessBase"]
[SourceQuality "1"]
[TimeControl "40/5400+30:1800+30"]

1. e4 {[%emt 0:00:00]} e5 {[%emt 0:00:00]} 2. Nf3 {[%emt 0:00:17]} Nc6 {[%emt 0:00:06]} 3. Nc3 {[%emt 0:04:44]} Nf6 {[%emt 0:07:08]} 4. d4 {[%emt 0:00:05]} exd4 {[%emt 0:01:32]} 5. Nxd4 {[%emt 0:00:07]} Bb4 {[%emt 0:02:20]} 6. Nxc6 {[%emt 0:00:15]} bxc6 {[%emt 0:00:15]} 7. Bd3 {[%emt 0:00:05]} d5 {[%emt 0:02:05]} 8. exd5 {[%emt 0:00:05]} cxd5 {[%emt 0:00:40]} 9. O-O {[%emt 0:00:06]} O-O {[%emt 0:01:53]} 10. Bg5 {[%emt 0:00:02]} c6 {[%emt 0:01:07]} 11. h3 {[%emt 0:00:07]} h6 {[%emt 0:01:05]} 12. Bh4 {[%emt 0:00:20]} Be7 {[%emt 0:02:14]} 13. Qf3 {[%emt 0:02:13]} Be6 {[%emt 0:02:14]} 14. Ne2 {[%emt 0:04:51]} Nd7 {[%emt 0:07:31]} 15. Bxe7 {[%emt 0:07:06]} Qxe7 {[%emt 0:00:12]} 16. Qg3 {[%emt 0:05:56]} Rab8 {[%emt 0:06:21]} 17. b3 {[%emt 0:10:30]} Nc5 {[%emt 0:21:22]} 18. Rae1 {[%emt 0:07:10]} Qf6 {[%emt 0:02:39]} 19. Nf4 {[%emt 0:04:01]} Rbe8 {[%emt 0:06:20]} 20. Nxe6 {[%emt 0:22:08]} Rxe6 {[%emt 0:00:29]} 21. Qc7 {[%emt 0:01:59]} Rxe1 {[%emt 0:08:10]} 22. Rxe1 {[%emt 0:00:09]} Nxd3 {[%emt 0:00:06]} 23. cxd3 {[%emt 0:00:04]} Qc3 {[%emt 0:00:06]} 24. Qe7 {[%emt 0:02:13]} Qxd3 {[%emt 0:03:46]} 25. Qxa7 {[%emt 0:00:07]} Qd2 {[%emt 0:01:24]} 26. Re7 {[%emt 0:02:33]} d4 {[%emt 0:01:20]} 27. g3 {[%emt 0:11:04]} Qc1+ {[%emt 0:07:15]} 28. Kg2 {[%emt 0:00:20]} c5 {[%emt 0:01:42]} 29. Rc7 {[%emt 0:02:29]} Qc2 {[%emt 0:02:47]} 30. Qxc5 {[%emt 0:01:16]} Qxa2 {[%emt 0:00:15]} 31. Qc4 {[%emt 0:01:48]} Qa8+ {[%emt 0:01:03]} 32. Qc6 {[%emt 0:04:36] normal} 1/2-1/2